Cogmind - Beta 14 @@@ ROGUE MODE // 2025.03.31 @ 02:50:19 Player: torvo Result: Self-destructed Performance ------------- Evolutions (2) 1000 Regions Visited (4) 800 Robots Destroyed (50) 250 Value Destroyed (1471) 1471 Prototype IDs (0) 0 Alien Tech Used (0) 0 Bonus (104) 104 TOTAL SCORE: 3625 Bonus ------- High Alert Combat Kills 54 Follower Combat Kills 50 Cogmind --------- Core Integrity 211/550 Matter 69/300 Energy 89/100 System Corruption 0% Temperature Hot (270) Movement Core (50) Location -8/Materials Parts ------- > --- POWER (1) -------- (None) > --- PROPULSION (2) --- (None) > --- UTILITY (5) ------ Small Storage Unit Weight Redist. System Signal Interpreter Graphene Brace > --- WEAPON (3) ------- (None) > --- INVENTORY (8) ---- Aluminum Leg Hardened Medium Armor Plating Medium Reactive Plating Assault Rifle Heavy Assault Rifle Gauss Cannon Peak State ------------ > --- POWER ------------ Nuclear Core > --- PROPULSION ------- Carbon-fiber Leg Carbon-fiber Leg > --- UTILITY ---------- Small Storage Unit Weight Redist. System Signal Interpreter Weapon Cycler Graphene Brace > --- WEAPON ----------- Gauss Cannon Gauss Cannon Gauss Cannon > --- INVENTORY -------- Aluminum Leg Hardened Medium Armor Plating Medium Reactive Plating Assault Rifle Heavy Assault Rifle Gauss Cannon [Rating: 37] Favorites ----------- Power Light Ion Engine Engine Light Ion Engine Power Core Nuclear Core Propulsion Aluminum Leg Treads Light Treads Leg Aluminum Leg Wheel Wheel Utility Signal Interpreter Device Weight Redist. System Storage Small Storage Unit Processor Signal Interpreter Protection Light Armor Plating Weapon Assault Rifle Energy Gun Beam Rifle Energy Cannon Beam Cannon Ballistic Gun Assault Rifle Ballistic Cannon Gauss Cannon Special Weapon Mining Laser Build | -11 -10 -10 -9 -8 ------- Run | Yrd Mat Min Mat Mat Slots Evolved 4 | . . . 2 2 Power . | . . . . . Propulsion . | . . . . . Utility 3 | . . . 2 1 Weapon 1 | . . . . 1 Parts Attached 70 | 6 10 12 12 30 Power 7 | 1 . 2 2 2 Engine 4 | 1 . 2 1 . Core 3 | . . . 1 2 Reactor . | . . . . . Propulsion 13 | 2 1 4 2 4 Treads 2 | . . 2 . . Leg 8 | . . 2 2 4 Wheel 3 | 2 1 . . . Hover . | . . . . . Flight . | . . . . . Utility 16 | 1 2 1 3 9 Device 4 | . . . 1 3 Storage 2 | 1 . 1 . . Processor 3 | . 1 . 1 1 Hackware . | . . . . . Protection 7 | . 1 . 1 5 Artifact . | . . . . . Weapon 34 | 2 7 5 5 15 Energy Gun 6 | 1 1 . 1 3 Energy Cannon 5 | . 3 1 1 . Ballistic Gun 17 | 1 2 4 2 8 Ballistic Cannon 4 | . . . . 4 Launcher . | . . . . . Special Weapon 2 | . 1 . 1 . Impact Weapon . | . . . . . Slashing Weapon . | . . . . . Piercing Weapon . | . . . . . Special Melee Weapon . | . . . . . Unidentified Prototypes . | . . . . . Parts Lost 32 | . 1 7 8 16 Power 6 | . . 2 1 3 Propulsion 7 | . . 2 2 3 Utility 5 | . . . 1 4 Weapon 14 | . 1 3 4 6 Highest Loss Streak 6 | . 1 4 2 6 To Critical Strikes . | . . . . . Average Slot Usage (%) 92 | . 97 90 91 94 Engine 7 | . 14 13 6 . Core 3 | . . . 4 8 Treads 3 | . . 10 . . Leg 11 | . . 3 20 16 Wheel 5 | . 28 5 . . Device 5 | . . . 7 12 Storage 8 | . 9 6 11 9 Processor 13 | . 4 14 17 12 Protection 7 | . 12 7 3 9 Energy Gun 5 | . 13 . 3 7 Energy Cannon 4 | . 1 9 5 . Ballistic Gun 11 | . 7 17 10 9 Ballistic Cannon 2 | . . . . 7 Peak Build Rating 37 | 6 7 11 19 37 Average Rating 14 | 3 6 7 14 23 On Entrance 7 | . 6 7 11 11 Naked Turns . | . . . . . Heaviest Build 61 | 11 12 13 21 61 Greatest Support 40 | 20 20 40 25 36 Greatest Overweight (x) 2 | . . 2 1 1 Average Overweight (x) . | . . . . . Largest Inventory Capacity 8 | 8 8 8 8 8 Average Capacity 7 | 6 6 6 8 8 Most Carried 8 | 5 5 8 8 8 Average Carried 5 | 2 3 6 6 5 Final Capacity 8 | 8 5 8 8 8 Final Carried 8 | 2 4 8 8 6 Class Distribution -------------------- 43% | Scavenger-Mutant 29% | Mutant 16% | Scavenger-Tank 5% | Tank 3% | Scavenger-Gunner Dominant Class ---------------- Mutant | -10/Materials Scavenger-Mutant | -10/Mines Scavenger-Mutant | -9/Materials Scavenger-Tank | -8/Materials Resources | -11 -10 -10 -9 -8 ----------- Run | Yrd Mat Min Mat Mat Matter Collected 1274 | 227 61 263 278 445 Remotely . | . . . . . Salvage Created 1557 | . 136 238 633 550 Parts 99 | . 11 14 43 31 Haulers Intercepted . | . . . . . Recyclers Shooed . | . . . . . Parts Field Recycled . | . . . . . Retrieved Matter . | . . . . . Parts Self-Destructed . | . . . . . Prevented . | . . . . . Kills | -11 -10 -10 -9 -8 ------- Run | Yrd Mat Min Mat Mat Combat Hostiles Destroyed 41 | . 4 7 15 15 Guns 28 | . 2 4 11 11 Cannons 12 | . 2 3 3 4 Classes Destroyed 9 | . 2 2 2 3 Worker 2 | . . . 1 1 Recycler 1 | . . . . 1 Operator 1 | . . . 1 . Watcher 5 | . 1 . 3 1 Swarmer 13 | . . 3 4 6 Grunt 16 | . 4 2 7 3 Sentry 10 | . . 2 4 4 Hunter 1 | . . . . 1 Heavy 1 | . . . . 1 Best Kill Streak 6 | . 2 3 6 5 Combat Bots Only 4 | . 2 3 4 4 Max Kills in Single Turn 2 | . 1 1 1 2 Gunslinging . | . . . . . Exploded . | . . . . . Melee . | . . . . . Uniques/NPCs Destroyed . | . . . . . Combat | -11 -10 -10 -9 -8 -------- Run | Yrd Mat Min Mat Mat Hostile Shots Fired 372 | . 27 59 116 170 Missed 104 | . 8 16 38 42 Damage Taken 4057 | . 258 497 1016 2286 Core 694 | . 29 104 222 339 Absorbed by Shields . | . . . . . Redirected to Shielding 49 | . 26 23 . . Regen/Repaired (Parts) 111 | . . . . 111 Core Remaining (%) 63 | 100 . 46 44 . Volleys Fired 156 | . 21 24 55 56 Largest 3 | . 2 2 2 3 Hottest 144 | . 140 120 135 144 Shots Fired 345 | . 41 48 108 148 Gun 246 | . 34 28 73 111 Cannon 88 | . 4 20 27 37 Launcher . | . . . . . Special 11 | . 3 . 8 . Kinetic 199 | . 13 26 56 104 Thermal 146 | . 28 22 52 44 Explosive . | . . . . . Electromagnetic . | . . . . . Robot Hit Streak 9 | . 4 7 9 9 Robot Miss Streak 8 | . 4 5 4 8 Penetration Max . | . . . . . Secondary Targets . | . . . . . Shots Hit Robots 198 | . 24 28 61 85 Core Hits 88 | . 11 10 27 40 Critical Kills . | . . . . . Critical Parts Destroyed . | . . . . . Critical Strikes 7 | . . . 3 4 Burn 6 | . . . 3 3 Blast 1 | . . . . 1 Melee Attacks . | . . . . . Impact . | . . . . . Slashing . | . . . . . Piercing . | . . . . . Sneak Attacks . | . . . . . Combat Hostiles . | . . . . . Follow-up Attacks . | . . . . . Damage Inflicted 3213 | . 317 406 1014 1476 Guns 2217 | . 251 214 688 1064 Cannons 886 | . 18 192 264 412 Explosions 20 | . . . 20 . Melee . | . . . . . Ramming 9 | . . . 9 . Kinetic 1890 | . 72 214 479 1125 Thermal 1294 | . 245 192 506 351 Explosive 20 | . . . 20 . Electromagnetic . | . . . . . Impact . | . . . . . Slashing . | . . . . . Piercing . | . . . . . Highest Corruption 2 | . 2 2 . . Average Corruption 2 | . 2 2 . . Corruption Purged . | . . . . . Corruption Blocked . | . . . . . Effects 15 | . 7 8 . . Message Errors 1 | . . 1 . . Matter Fused 6 | . 3 3 . . Energy Discharges 1 | . 1 . . . Data Loss (minor) 5 | . 3 2 . . Misfires 2 | . . 2 . . Overload Shots . | . . . . . Overflow Damage 49 | . . . 42 7 Projectiles 11 | . . . 4 7 Explosions 38 | . . . 38 . Melee . | . . . . . Knockbacks 8 | . . . . 8 Impact . | . . . . . Kinetic 8 | . . . . 8 Secondary . | . . . . . Self-Inflicted Damage 41 | . . . 41 . Shots 1 | . . . 1 . Rammed . | . . . . . Targets Rammed 3 | . . . 3 . Kicked 3 | . . . 3 . Crushed . | . . . . . Highest Temperature 383 | . 154 383 108 375 Average Temperature 96 | . 63 123 37 114 Received Heat Transfer 1455 | . 132 141 426 756 Effects 2 | . . 2 . . Shutdowns 1 | . . 1 . . Damage (minor) 1 | . . 1 . . Siege Activations . | . . . . . Robots Corrupted . | . . . . . Combat Hostiles . | . . . . . Parts Fried . | . . . . . Impact Corruptions . | . . . . . Robots Melted 1 | . . . 1 . Combat Hostiles 1 | . . . 1 . Parts Melted 13 | . . 2 9 2 Heat Transferred 3386 | . 537 407 1258 1184 Parts Sabotaged . | . . . . . Parts Stolen . | . . . . . Parts Stripped . | . . . . . Power Chain Reactions . | . . . . . Alert | -11 -10 -10 -9 -8 ------- Run | Yrd Mat Min Mat Mat Peak Influence 465 | . 177 159 434 465 Initial 183 | . . 69 . 183 Average 191 | . 51 71 225 333 Maximum Alert Level 2 | . . . 2 2 Low Security (%) 54 | 100 100 100 39 4 Level 1 33 | . . . 58 58 Level 2 12 | . . . 1 37 Level 3 . | . . . . . Level 4 . | . . . . . Level 5 . | . . . . . High Security . | . . . . . Max Security . | . . . . . Squads Dispatched 7 | . 1 1 2 3 Investigation 1 | . . . . 1 Extermination . | . . . . . Reinforcement 5 | . 1 . 2 2 Assault 1 | . . 1 . . Garrison . | . . . . . Intercept . | . . . . . Searches Triggered . | . . . . . Construction Impeded . | . . . . . Haulers Reinforced . | . . . . . Active Scanning Responses . | . . . . . Cargo Convoy Interrupts . | . . . . . Stealth | -11 -10 -10 -9 -8 --------- Run | Yrd Mat Min Mat Mat Distress Signals 6 | . 2 . 4 . Communications Jammed . | . . . . . Distress Signals . | . . . . . Times Spotted 82 | . 14 10 33 25 Peak Tracking Total 7 | . 5 4 7 5 Tactical Retreats 3 | . . . 2 1 Traps | -11 -10 -10 -9 -8 ------- Run | Yrd Mat Min Mat Mat Traps Triggered 3 | . 3 . . . Indirectly . | . . . . . Trap Hack Attempts . | . . . . . Triggered . | . . . . . Disarmed . | . . . . . Reprogrammed . | . . . . . Reused . | . . . . . Traps Extracted . | . . . . . Installed . | . . . . . Triggered . | . . . . . Machines | -11 -10 -10 -9 -8 ---------- Run | Yrd Mat Min Mat Mat Machines Disabled 4 | . 1 . 2 1 Max in Single Turn 2 | . 1 . 2 1 Machines Repaired . | . . . . . Machines Dismantled . | . . . . . Machines Sabotaged . | . . . . . Overloaded Fab Kills . | . . . . . Hacking | -11 -10 -10 -9 -8 --------- Run | Yrd Mat Min Mat Mat Machines Accessed 6 | . 1 . 2 3 Terminals 3 | . . . 1 2 Fabricators . | . . . . . Repair Stations 1 | . . . . 1 Recycling Units 2 | . 1 . 1 . Scanalyzers . | . . . . . Garrison Access . | . . . . . Total Hacks 26 | . 4 . 5 17 Successful 15 | . 4 . 3 8 Failed 11 | . . . 2 9 Catastrophic 1 | . . . . 1 Database Lockouts . | . . . . . Manual . | . . . . . Terminals 12 | . . . 3 9 Fabricators . | . . . . . Repair Stations 8 | . . . . 8 Recycling Units 6 | . 4 . 2 . Scanalyzers . | . . . . . Garrison Access . | . . . . . Terminal Hacks 5 | . . . 2 3 Record 4 | . . . 1 3 Locate Traps 1 | . . . 1 . Fabricator Hacks . | . . . . . Repair Station Hacks 5 | . . . . 5 Scan Component 3 | . . . . 3 Repair 2 | . . . . 2 Recycling Unit Hacks 5 | . 4 . 1 . Process 2 | . 2 . . . Report Inventory 2 | . 1 . 1 . Retrieve Matter 1 | . 1 . . . Scanalyzer . | . . . . . Garrison Access Hacks . | . . . . . Unauthorized Hacks . | . . . . . Terminals . | . . . . . Fabricators . | . . . . . Repair Stations . | . . . . . Recycling Units . | . . . . . Scanalyzers . | . . . . . Garrison Access . | . . . . . Data Cores Recovered . | . . . . . Used . | . . . . . Hacking Detections 5 | . . . 2 3 Full Trace Events 1 | . . . . 1 Feedback Events . | . . . . . Feedback Blocked . | . . . . . Robot Schematics Acquired . | . . . . . Robots Built . | . . . . . Authchips . | . . . . . Time . | . . . . . Total Robot Build Rating . | . . . . . Part Schematics Acquired . | . . . . . Parts Built . | . . . . . Authchips . | . . . . . Time . | . . . . . Total Part Build Rating . | . . . . . Parts Repaired 2 | . . . . 2 Time 76 | . . . . 76 Parts Recycled . | . . . . . Recycled Matter 35 | . 35 . . . Retrieved Matter 35 | . 35 . . . Retrieved Components . | . . . . . Parts Scanalyzed . | . . . . . Part Schematics Acquired . | . . . . . Parts Damaged . | . . . . . Bothacking | -11 -10 -10 -9 -8 ------------ Run | Yrd Mat Min Mat Mat Used RIF Installer . | . . . . . Robots Hacked . | . . . . . Non-combat . | . . . . . Combat . | . . . . . Robot Hacks Applied . | . . . . . Relay Couplers Released . | . . . . . Fabnet Peak Effective % . | . . . . . Robots Rewired . | . . . . . Allies Hacked . | . . . . . Hacks Repelled . | . . . . . Allies | -11 -10 -10 -9 -8 -------- Run | Yrd Mat Min Mat Mat Total Allies 1 | . . 1 . . Largest Group 1 | . . 1 . . Highest-Rated Group 31 | . . 31 . . Highest-Rated Ally 31 | . . 31 . . Total Orders . | . . . . . Ally Attacks 14 | . . 14 . . Total Damage 252 | . . 252 . . Kills 2 | . . 2 . . Allies Corrupted . | . . . . . Allies Melted . | . . . . . Intel | -11 -10 -10 -9 -8 ------- Run | Yrd Mat Min Mat Mat Robot Analysis Total . | . . . . . Derelict Logs Recovered 2 | . . 2 . . Drone Launches . | . . . . . Drone Recoveries . | . . . . . Exploration | -11 -10 -10 -9 -8 ------------- Run | Yrd Mat Min Mat Mat Turns Passed 2969 | 45 391 815 777 941 Spaces Moved 1893 | 45 352 615 458 423 Core 42 | 17 . 25 . . Treads 182 | . . 182 . . Legs 958 | . . 77 458 423 Wheels 711 | 28 352 331 . . Hover . | . . . . . Flight . | . . . . . Fastest Speed 50 | 50 80 50 120 120 Average Speed 112 | 68 80 110 124 134 Slowest Speed 190 | 80 80 160 190 190 Overloaded Moves . | . . . . . Propulsion Burnouts . | . . . . . Robots Hopped . | . . . . . Cave-ins Triggered . | . . . . . Exploration Rate (%) 45 | 4 51 91 47 33 Regions Visited 4 Branch Regions 1 Pre-discovered Areas 1 | . . 1 . . Known Exits Taken 3 | . 1 1 1 . Unknown Exits Taken 1 | 1 . . . . Scrap Searched 1 | . . 1 . . Spaces Dug . | . . . . . Terrain Destroyed 60 | . . . 38 22 Melee . | . . . . . Projectile 22 | . . . . 22 AOE 38 | . . . 38 . Terrain Rammed . | . . . . . Walls Destroyed . | . . . . . Machines Disabled . | . . . . . Actions | -11 -10 -10 -9 -8 --------- Run | Yrd Mat Min Mat Mat Total 2407 | 58 413 707 549 680 Wait 201 | . 17 32 9 143 Move 1889 | 44 351 614 457 423 Hop . | . . . . . Pick Up 67 | 8 11 18 10 20 Fast Attach . | . . . . . Attach 51 | 6 6 10 9 20 Detach 4 | . . . 1 3 Swap 19 | . 4 2 3 10 Drop 17 | . 3 7 2 5 Fire 156 | . 21 24 55 56 Melee . | . . . . . Ram . | . . . . . Kick 3 | . . . 3 . Crush . | . . . . . Escape Stasis . | . . . . . Rewire . | . . . . . Trap . | . . . . . Miscellaneous . | . . . . . Route ------- -11/Scrapyard -10/Materials (discovered 3 exits: *Mat / *Min x2) -10/Mines (discovered 2 exits: *Mat x2) -9/Materials -8/Materials (discovered 1 exit: [*Fac]) History --------- Turn | Location | Event 5 | -11/Scrapyard | Discovered new exit (range 15) 46 | -11/Scrapyard | Entered Materials 282 | -10/Materials | Discovered new exit (range 10) 288 | -10/Materials | Discovered new exit (range 9) 302 | -10/Materials | Identified exit to Materials 307 | -10/Materials | Identified exit to Mines 321 | -10/Materials | Build established: Mutant 345 | -10/Materials | Discovered exit to Mines (range 14) 437 | -10/Materials | Entered Mines 476 | -10/Mines | Lost 3 parts (1p1n1w) 512 | -10/Mines | Learned 2 Materials zone layouts 676 | -10/Mines | Discovered exit to Materials (range 8) 793 | -10/Mines | Core integrity fell below 50% 799 | -10/Mines | Lost 4 parts (1p1n2w) 1047 | -10/Mines | Discovered exit to Materials (range 5) 1070 | -10/Mines | Met a Derelict testing a Signal Generator 1119 | -10/Mines | Build established: Scavenger-Mutant 1252 | -10/Mines | Entered Materials 1252 | -9/Materials | Evolved 2 slots: Utility x2 1253 | -9/Materials | Identified exit to Materials 1964 | -9/Materials | Core integrity fell below 50% 2029 | -9/Materials | Entered another Materials area 2029 | -8/Materials | Evolved 2 slots: Utility x1, Weapon x1 2412 | -8/Materials | Repaired Hpw. Shotgun 2452 | -8/Materials | Repaired Carbon-fiber Leg 2665 | -8/Materials | Discovered new exit (range 10) 2724 | -8/Materials | Lost 4 parts (1p1u2w) 2966 | -8/Materials | Core integrity fell below 50% 2970 | -8/Materials | Self-destructed Last Messages --------------- G-47 Trooper knocked back. Slug penetrates Wall. Weapon Cycler destroyed. Atomic Centrifuge disabled. Acquired 6 matter. Acquired 27 matter. Terminal disabled. Slug penetrates G-47 Trooper. G-47 Trooper knocked back. Gauss Cannon destroyed. Nuclear Core destroyed. Slug penetrates G-47 Trooper. G-47 Trooper knocked back. Gauss Cannon destroyed. G-47 Trooper Aluminum Leg blasted off. G-47 Trooper knocked back. Carbon-fiber Leg destroyed. Slug penetrates G-47 Trooper. G-47 Trooper destroyed. Gauss Cannon destroyed. Map ----- +----------------------------------------------------+ | | | | | ?????????????????##########??????????????????????? | | ?????????????????# #??????????????????????? | | ?????????????????# """""#??????????????????????? | | ?????????????????# [ """""#??????????????????????? | | ?????????????????# """""#??????????????????????? | | ?????????????????# """""#??????????????????????? | | ??????????######## """""#??????????????????????? | | ??????????#! [[]]# """""#??????????????????????? | | ??????????#!! ]]# ! """"#??????????????????????? | | ????????### # #??????????????????????? | | ########### ###+"############+##????????????? | | # " ][ ???????????? | | ??# < ! ???????????? | | ??# ???????????? | | ??#""########+####################/##????????????? | | ????????# """ """ #???? #???????????????????????? | | ????????# """ """ #??## #???????????????????????? | | ????????# """ """ ####;#"#???????????????????????? | | ????????# # #??????????????????###### | | ????????# # #?????????????????? # | | ????????# # ""g#??????????????????? # | | ###+##### ; % T" ##?????????????????? # | | / ! # %% gg;#??????????????????# # | | ########### g=@#??????????????????# # | | ###########;;+#%######### #??????????# # | | #??????????# # | | ##################""" #####????????????# # | | ?????????????# " #????????????????# # | | ?????????????# # """ ##??????????????## # | | ?????????????# #! "" T#????????#+#???# | | ?????????????# """ # """ ##????????# #???# | | ?????????????# """ # #?????????# #???# | | ?????????????# """ # #?????????# ##### | | ?????????????######## """ #?????????# | | ??????????????????#"" """ #?????????# ########## | | ??????????????????#"T """ #?????????# #????????? | | ??????????????????#"" #?????????# #????????? | | ??????????????????### ! ####+###??# #????????? | | ????????????????????# ## #### ###??????? | | ??????????########### "T" ## #??????? | | ? """ T +??????? | | ??????????##+##############+## #??????? | | ????????????????????????? # ########??????? | | ??????????????????????? """ ### ###?????????????? | | ??????????????????????# """ #?# #???????????????? | | ??????????????????????# """ #?# #???????????????? | | ??????????????????????# #?# #???????????????? | | ??????????????????????# !#?# #???????????????? | +----------------------------------------------------+ Best States ------------- Heat Dissipation 42 Energy Generation 14 Energy Capacity 265 Matter Stores 300 Matter Capacity 300 Sight Range 20 Terrain Scan Density 10 Additional Mass Support 6 Armor Coverage 450 Resistance: KI 30 Propulsion Shielding 33 Weapon Cycling 15 Evasion (%) 55 Targeting Accuracy 5 Recoil Reduction 2 Item Schematics ----------------- None Robot Schematics ------------------ None Fabricated ------------ Nothing Alien Tech Used ----------------- None Achievements -------------- Oops Challenges ------------ None Game ------ Seed QuantumSupersonicUnit Manual? 0 Play Time 00:37:22 Cumulative 4.3 hours Start 2025.03.31 @ 02:12:54 End 2025.03.31 @ 02:50:19 Sessions 1 Manual Loads 0 Difficulty Rogue Special Mode None Game No. 6 Rogue 6 Adventurer 0 Explorer 0 Win Type - Total 0 Types 0/0/0/0/0/0/0/0/0 Lore% 2 Gallery% 9 Achievement% 7 Wizard Run 0 Options --------- Layout 1 ASCII 0 Keyboard 0 Movement Numpad Keybinds 0 Fullscreen 1 Font 24/Smallcaps Map View 50x35 Zoom Use 0% Tactical HUD 0 Map Filters NONE Filters NONE Steam 1 RUN: 0c66aeb3-d458-43df-a6a4-323ab02c049a